bitfinex/quotes_BTCUSD_20250129
["timestamp","ask_amount","ask_price","bid_price","bid_amount"]
[1738175445010,5.2e-07,102600.0,102590.0,1.28324367]
[1738175445211,5.2e-07,102600.0,102590.0,1.28361732]
[1738175446132,5.2e-07,102600.0,102590.0,1.13324367]
[1738175446369,5.2e-07,102600.0,102590.0,1.13061732]
[1738175446787,5.2e-07,102600.0,102590.0,1.13261732]
[1738175446988,5.2e-07,102600.0,102590.0,1.28261732]
[1738175448523,5.2e-07,102600.0,102590.0,2.78261732]
[1738175451237,5.2e-07,102600.0,102590.0,1.28261732]
[1738175451572,5.2e-07,102600.0,102590.0,2.78261732]
[1738175451771,0.1213,102620.0,102610.0,0.25037365]
[1738175451978,0.0001422,102630.0,102620.0,0.14617]
[1738175452176,0.00028652,102630.0,102620.0,0.24341316]
[1738175452531,0.07658652,102630.0,102620.0,0.24341316]
[1738175452731,0.07658652,102630.0,102620.0,0.24378681]
[1738175453114,0.07658652,102630.0,102620.0,0.39378681]
[1738175453318,0.00028652,102630.0,102620.0,0.42413174]
[1738175453528,0.00028652,102630.0,102620.0,0.52413174]
[1738175453731,0.00028652,102630.0,102620.0,0.42413174]
[1738175454156,0.00028652,102630.0,102620.0,0.44713174]
[1738175454374,0.00028652,102630.0,102620.0,0.89277574]
[1738175454985,0.00028652,102630.0,102620.0,0.64266074]
[1738175456619,0.00028652,102630.0,102620.0,0.52863174]
[1738175456828,0.00028652,102630.0,102620.0,0.63059074]
[1738175457033,0.00028652,102630.0,102620.0,0.52863174]
[1738175457239,0.00028652,102630.0,102620.0,0.52963174]
[1738175457578,0.00028652,102630.0,102620.0,0.62963174]
[1738175457782,0.00028652,102630.0,102620.0,0.54813174]
[1738175458001,0.00028652,102630.0,102620.0,0.55789657]
[1738175458712,0.00028652,102630.0,102620.0,1.42510257]
[1738175458915,0.00028652,102630.0,102620.0,1.50110257]
[1738175459168,0.00028652,102630.0,102620.0,1.56827831]
[1738175459513,5.2e-07,102630.0,102620.0,1.56827831]
[1738175459726,5.2e-07,102630.0,102620.0,0.70107231]
[1738175460136,5.2e-07,102630.0,102620.0,0.70007231]
[1738175460344,5.2e-07,102630.0,102620.0,0.70307231]
[1738175460558,0.0454421,102660.0,102650.0,0.39650065]
[1738175460761,0.0454421,102660.0,102650.0,0.50390381]
[1738175460921,0.0001421,102660.0,102650.0,0.53416835]
[1738175461135,0.0001421,102660.0,102650.0,0.63704835]
[1738175461332,0.0001421,102660.0,102650.0,0.76004835]
[1738175461545,0.0001421,102660.0,102650.0,0.72978381]
[1738175461835,0.0500421,102660.0,102650.0,0.60678381]
[1738175462850,0.0001421,102660.0,102650.0,0.60678381]
[1738175463450,0.0001421,102660.0,102650.0,0.72978381]
[1738175463661,0.0001421,102660.0,102650.0,0.75999741]
[1738175464624,0.0001421,102660.0,102650.0,0.72978381]
[1738175464825,0.0001421,102660.0,102650.0,0.75998043]
[1738175465059,0.0001421,102660.0,102650.0,0.72978381]
[1738175467394,0.0001421,102670.0,102660.0,0.023]
[1738175467597,0.00044096,102670.0,102660.0,2.31962316]
[1738175467769,0.00044096,102670.0,102660.0,2.12734559]
[1738175468138,0.00044096,102670.0,102660.0,1.68949306]
[1738175468329,0.00044096,102670.0,102660.0,1.65934881]
[1738175468546,0.00044096,102670.0,102660.0,0.95094781]
[1738175468743,0.00044096,102670.0,102660.0,0.78313316]
[1738175468972,0.00044096,102670.0,102660.0,0.66185616]
[1738175469433,0.00044096,102670.0,102660.0,0.56285616]
[1738175469617,0.00044096,102670.0,102660.0,0.63985616]
[1738175470054,0.00044096,102670.0,102660.0,0.64022981]
[1738175470257,0.00044096,102670.0,102660.0,0.63985616]
[1738175470461,0.00044096,102670.0,102660.0,0.64022981]
[1738175470641,0.00044096,102670.0,102660.0,0.63985616]
[1738175470866,0.00044096,102670.0,102660.0,0.64022981]
[1738175471086,0.00044096,102670.0,102660.0,0.63922981]
[1738175471303,0.5456492,102710.0,102700.0,0.25037365]
[1738175471304,0.0001422,102710.0,102700.0,0.25037365]
[1738175471504,0.00028651,102710.0,102700.0,0.98355916]
[1738175471925,0.00028651,102710.0,102700.0,0.886316]
[1738175471926,0.00150346,102710.0,102700.0,0.886316]
[1738175472127,0.08278651,102710.0,102700.0,0.88668965]
[1738175473299,0.1302036,102710.0,102700.0,0.786316]
[1738175473501,0.1302036,102710.0,102700.0,0.636316]
[1738175475528,0.22744676,102710.0,102700.0,0.49026]
[1738175475733,0.1298,102700.0,102690.0,0.146067]
[1738175476378,0.1298,102700.0,102690.0,0.24644065]
[1738175476560,0.1298,102700.0,102690.0,0.34368381]
[1738175477309,0.1298,102700.0,102690.0,0.146067]
[1738175477448,0.1298,102700.0,102690.0,0.14644065]
[1738175477661,0.0487,102700.0,102690.0,0.39368381]
[1738175477905,0.08138651,102710.0,102700.0,0.24642965]
[1738175478469,0.08138651,102710.0,102700.0,0.34367281]
[1738175478668,0.00028651,102710.0,102700.0,0.34367281]
[1738175479271,0.00028651,102710.0,102700.0,0.49367281]
[1738175480580,0.00128651,102710.0,102700.0,0.49367281]
[1738175481406,0.05048651,102710.0,102700.0,0.39642965]
[1738175482111,0.04948651,102710.0,102700.0,0.40654965]
[1738175482905,0.04948651,102710.0,102700.0,0.406176]
[1738175483129,0.04948651,102710.0,102700.0,0.40654965]
[1738175484900,0.00028651,102710.0,102700.0,0.50379281]
[1738175485905,0.00028651,102710.0,102700.0,0.58459281]
[1738175486112,0.00028651,102710.0,102700.0,0.70759281]
[1738175486317,0.00028651,102710.0,102700.0,2.0837463]
[1738175486523,0.0390892,102770.0,102750.0,0.20287731]
[1738175486734,0.0390892,102770.0,102760.0,0.3462336]
[1738175486957,0.00014423,102770.0,102760.0,0.6694396]
[1738175487172,0.0001422,102780.0,102770.0,0.323356]
[1738175487173,4.3e-07,102780.0,102770.0,0.323356]
[1738175487387,0.10341565,102790.0,102770.0,0.323356]
[1738175487388,0.04897112,102790.0,102780.0,0.44776]
[1738175487596,0.04897112,102790.0,102780.0,0.58052879]
[1738175487808,0.035,102800.0,102780.0,0.84147993]
[1738175487809,0.08397112,102800.0,102780.0,0.84147993]
[1738175488055,0.08397112,102800.0,102790.0,1.793104]
[1738175488270,0.0043042,102820.0,102810.0,0.1459]
[1738175488482,0.00444829,102820.0,102810.0,0.1459]
[1738175489107,0.00444829,102820.0,102810.0,0.14687262]
[1738175489380,0.00444829,102820.0,102810.0,0.1459]
[1738175489596,0.00444829,102820.0,102810.0,0.2459]
[1738175489809,0.00444829,102820.0,102810.0,0.44314316]
[1738175490008,0.00444829,102820.0,102810.0,0.34314316]
[1738175490203,0.00444829,102820.0,102810.0,0.2459]
[1738175490419,0.00544829,102820.0,102800.0,0.1]
[1738175490619,0.15133429,102820.0,102810.0,0.01012]
[1738175490826,0.00544829,102820.0,102800.0,0.156032]
[1738175491045,0.00544829,102820.0,102800.0,0.350582]
[1738175491245,0.00444829,102820.0,102800.0,0.350582]
[1738175491448,0.00444829,102820.0,102800.0,0.350573]
[1738175491784,0.1511208,102820.0,102800.0,0.340453]
[1738175491994,0.15,102810.0,102800.0,0.156032]
[1738175492325,0.2959,102810.0,102790.0,0.01012]
[1738175492531,0.490434,102810.0,102790.0,0.01012]
[1738175492731,0.58767716,102810.0,102780.0,0.340511]
[1738175492867,0.58767716,102810.0,102780.0,0.01012]
[1738175492868,0.145919,102800.0,102780.0,0.01012]
[1738175493084,0.79223116,102810.0,102780.0,0.15606]
[1738175493310,0.00078651,102800.0,102780.0,0.340518]
[1738175493507,0.15,102810.0,102800.0,0.145914]
[1738175493708,0.15078651,102810.0,102800.0,0.145914]
[1738175495136,0.15444829,102820.0,102810.0,0.2459]
[1738175495337,0.15444829,102820.0,102810.0,0.1]
[1738175495608,0.1552348,102820.0,102810.0,0.2459]
[1738175498280,0.0052348,102820.0,102810.0,0.2459]
[1738175498662,0.00444829,102820.0,102810.0,0.2459]
[1738175498959,0.0052348,102820.0,102810.0,0.1459]
[1738175501736,0.0052348,102820.0,102800.0,0.54542399]
[1738175502121,0.0052348,102820.0,102800.0,0.53530399]
[1738175502317,0.0052348,102820.0,102810.0,0.1459]
[1738175502543,0.0052348,102820.0,102800.0,0.54541199]
[1738175502871,0.0052348,102820.0,102810.0,0.1459]
[1738175503269,0.16006,102830.0,102810.0,0.340422]
[1738175503475,0.001,102820.0,102810.0,0.1459]
[1738175503982,0.25730316,102830.0,102810.0,0.340424]
[1738175504463,0.25730316,102830.0,102810.0,0.1459]
[1738175504696,0.59767616,102830.0,102800.0,0.35085999]
[1738175504904,0.79218216,102830.0,102800.0,0.54555608]
[1738175505115,0.48628416,102820.0,102800.0,0.00044208]
[1738175505320,0.1559,102810.0,102800.0,0.00044208]
[1738175505527,0.38054316,102810.0,102800.0,0.00044208]
[1738175506373,0.37054316,102810.0,102800.0,0.00044208]
[1738175506788,0.53394617,102810.0,102800.0,0.00044208]
[1738175507036,0.37054316,102810.0,102800.0,0.00044208]
[1738175507240,0.350514,102790.0,102760.0,0.645318]
[1738175507446,0.64233616,102790.0,102760.0,0.545318]
[1738175507655,0.63233716,102790.0,102760.0,0.535198]
[1738175507872,0.63239816,102780.0,102750.0,0.245974]
[1738175508124,0.63239816,102780.0,102760.0,0.145968]
[1738175508125,0.09724316,102780.0,102760.0,0.145968]
[1738175508348,0.24318816,102780.0,102760.0,0.340595]
[1738175508559,0.43777816,102780.0,102760.0,0.145968]
[1738175508965,0.145945,102780.0,102760.0,0.340596]
[1738175509164,0.15,102790.0,102770.0,0.340556]
[1738175509371,0.09724316,102790.0,102770.0,0.340556]
[1738175509616,0.340485,102800.0,102770.0,0.340557]
[1738175509834,0.002,102790.0,102770.0,0.340543]
[1738175510041,0.002,102790.0,102770.0,0.145948]
[1738175510243,0.145931,102790.0,102770.0,0.145948]
[1738175510447,0.43774616,102790.0,102760.0,0.489224]
[1738175510661,0.09924316,102790.0,102770.0,0.340559]
[1738175511064,0.24317116,102790.0,102770.0,0.14595]
[1738175511274,0.43974316,102790.0,102770.0,0.14595]
[1738175511692,0.43974316,102790.0,102760.0,0.729801]
[1738175511895,0.63431516,102790.0,102760.0,0.535183]
[1738175512356,0.43974316,102790.0,102760.0,0.535183]
[1738175512560,0.555053,102800.0,102770.0,0.340562]
[1738175512749,0.65229616,102800.0,102770.0,0.340562]
[1738175512878,0.002,102790.0,102770.0,0.340562]
[1738175513300,0.65229616,102800.0,102770.0,0.340562]
[1738175513495,0.001,102790.0,102780.0,0.145935]
[1738175513717,0.001,102790.0,102780.0,0.340525]
[1738175514163,0.47771054,102810.0,102780.0,0.635115]
[1738175514364,0.002,102800.0,102780.0,0.829695]
[1738175514774,0.002,102800.0,102780.0,0.635105]
[1738175515003,0.24515816,102800.0,102780.0,0.440515]
[1738175515198,0.01811456,102790.0,102780.0,0.440515]
[1738175515401,0.01811456,102790.0,102780.0,0.29458]
[1738175516403,0.02011456,102790.0,102780.0,0.29458]
[1738175516609,0.002,102790.0,102780.0,0.29458]
[1738175517019,0.13725554,102810.0,102790.0,0.340486]
[1738175517020,0.38861985,102810.0,102790.0,0.340486]
[1738175517221,0.48586301,102810.0,102780.0,0.683738]
[1738175517456,0.48586301,102810.0,102790.0,0.145926]
[1738175517831,0.01813203,102800.0,102790.0,0.145926]
[1738175518490,0.01813203,102800.0,102780.0,0.829668]
[1738175518696,0.01813203,102800.0,102790.0,0.145928]
[1738175518894,0.29132901,102810.0,102790.0,0.340497]
[1738175519299,0.29333101,102810.0,102790.0,0.340497]
[1738175519496,0.09952901,102810.0,102790.0,0.535058]
[1738175519775,0.09752901,102810.0,102790.0,0.535058]
[1738175519935,0.24342901,102810.0,102790.0,0.340489]
[1738175520113,0.24542901,102810.0,102790.0,0.37055551]
[1738175520309,0.09952901,102810.0,102790.0,0.37055551]
[1738175520513,0.09952901,102810.0,102790.0,0.03006651]
[1738175520514,0.04717157,102800.0,102790.0,0.03006651]
[1738175520974,0.04717157,102800.0,102790.0,0.145928]
[1738175521208,0.04717157,102800.0,102790.0,0.17599451]
[1738175521867,0.04717157,102800.0,102790.0,0.27599451]
[1738175522108,0.00228585,102810.0,102800.0,0.145914]
[1738175522308,0.00228585,102810.0,102800.0,0.17598051]
[1738175522453,0.00028585,102810.0,102800.0,0.17598051]
[1738175523602,0.00228585,102810.0,102800.0,0.17598051]
[1738175524148,0.00028585,102810.0,102800.0,0.17598051]
[1738175524353,0.00128585,102810.0,102800.0,0.17598051]
[1738175525710,0.00128585,102810.0,102800.0,0.27598051]
[1738175526117,0.00128585,102810.0,102800.0,0.17598051]
[1738175526422,0.00028585,102810.0,102800.0,0.17598051]
[1738175526642,0.00228585,102810.0,102800.0,0.17598051]
[1738175527119,0.00028585,102810.0,102800.0,0.17598051]
[1738175527336,0.00128585,102810.0,102800.0,0.03006651]
[1738175527564,0.43897101,102810.0,102790.0,0.01041799]
[1738175527744,0.09852901,102810.0,102790.0,0.48102981]
[1738175528106,0.00028585,102810.0,102800.0,0.245914]
[1738175528324,0.145932,102830.0,102810.0,0.340418]
[1738175528524,0.29179916,102830.0,102810.0,0.03011382]
[1738175528677,0.63218716,102830.0,102800.0,0.56510582]
[1738175528879,0.63218716,102830.0,102800.0,0.75964782]
[1738175529084,0.63218716,102830.0,102800.0,0.75964882]
[1738175529282,0.145888,102820.0,102800.0,0.37056582]
[1738175529462,0.63218716,102830.0,102800.0,0.57522782]
[1738175530284,0.001,102810.0,102800.0,0.48068582]
[1738175530508,0.01814935,102820.0,102800.0,0.67522782]
[1738175531533,0.01814935,102810.0,102800.0,0.48068582]
[1738175532114,0.01814935,102810.0,102800.0,0.52931482]
[1738175532343,0.01814935,102810.0,102800.0,0.42931482]
[1738175532770,0.01814935,102810.0,102800.0,0.52931482]
[1738175533086,0.146889,102820.0,102800.0,0.52931482]
[1738175533289,0.09724316,102820.0,102800.0,0.67521982]
[1738175533507,0.09724316,102820.0,102800.0,0.86976282]
[1738175533712,0.002,102810.0,102800.0,0.48067682]
[1738175534129,0.09724316,102820.0,102800.0,0.67521682]
[1738175534359,0.09824316,102820.0,102800.0,0.67521682]
[1738175534544,0.09824316,102820.0,102800.0,0.86975982]
[1738175534807,0.001,102820.0,102810.0,0.1459]
[1738175534997,0.001,102820.0,102810.0,0.37422955]
[1738175535201,0.001,102820.0,102810.0,0.37325698]
[1738175536113,6e-05,102830.0,102810.0,0.52325698]
[1738175536347,6e-05,102830.0,102820.0,0.145886]
[1738175536561,6e-05,102830.0,102820.0,0.17599982]
[1738175536770,6e-05,102830.0,102820.0,0.156006]
[1738175537329,0.00106,102830.0,102820.0,0.156006]
[1738175537738,6e-05,102830.0,102820.0,0.156006]
[1738175538165,0.00206,102830.0,102820.0,0.156006]
[1738175539206,0.00206,102830.0,102820.0,0.01012]
[1738175539207,0.147931,102830.0,102820.0,0.01012]
[1738175539417,0.00206,102830.0,102820.0,0.01012]
[1738175540350,0.00206,102830.0,102800.0,0.340437]
[1738175540351,0.145891,102820.0,102800.0,0.340437]
[1738175540557,0.17364316,102810.0,102790.0,0.63806099]
[1738175540820,0.24313616,102820.0,102800.0,0.340461]
[1738175541059,0.24313616,102820.0,102800.0,0.535013]
[1738175541265,0.43765216,102820.0,102800.0,0.340461]
[1738175541481,0.24313616,102820.0,102800.0,0.340461]
[1738175542168,0.09724316,102820.0,102800.0,0.535005]
[1738175542439,0.24312916,102820.0,102800.0,0.340458]
[1738175542611,0.24312916,102820.0,102800.0,0.535002]
[1738175542815,0.24312916,102820.0,102800.0,0.53501]
[1738175543387,0.09824316,102820.0,102810.0,0.1459]
[1738175544193,0.09724316,102820.0,102810.0,0.1459]
[1738175544374,0.165945,102830.0,102810.0,0.1459]
[1738175544574,0.001,102820.0,102810.0,0.1459]
[1738175545403,0.001,102820.0,102810.0,0.2459]
[1738175545806,0.09730316,102830.0,102810.0,0.2459]
[1738175545982,0.09730316,102830.0,102820.0,0.145886]
[1738175546185,0.00206,102830.0,102820.0,0.145886]
[1738175546622,6e-05,102830.0,102820.0,0.145886]
[1738175547164,0.00106,102830.0,102820.0,0.145886]
[1738175547566,6e-05,102830.0,102820.0,0.145886]
[1738175547795,0.00206,102830.0,102820.0,0.145886]
[1738175548336,0.0022019,102830.0,102820.0,0.145886]
[1738175552618,0.0002019,102830.0,102820.0,0.145886]
[1738175552989,0.0012019,102830.0,102820.0,0.145886]
[1738175554599,0.0012419,102830.0,102820.0,0.145886]
[1738175554821,0.09848506,102830.0,102820.0,0.145886]
[1738175555064,0.09848506,102830.0,102810.0,0.54502]
[1738175555200,0.24435706,102830.0,102810.0,0.545022]
[1738175555404,0.24435706,102830.0,102810.0,0.739543]
[1738175555609,0.24435706,102830.0,102810.0,0.534941]
[1738175555806,0.43885406,102830.0,102810.0,0.34042]
[1738175556092,0.63335906,102830.0,102810.0,0.34042]
[1738175556261,0.43785406,102830.0,102810.0,0.534946]
[1738175556415,0.24335706,102830.0,102810.0,0.729469]
[1738175556618,0.24335706,102830.0,102810.0,0.534943]
[1738175556840,0.09948506,102830.0,102820.0,0.145886]
[1738175557370,0.09748506,102830.0,102810.0,0.534941]
[1738175557547,0.09848506,102830.0,102820.0,0.145886]
[1738175557751,0.09848506,102830.0,102810.0,0.534941]
[1738175558075,0.43885506,102830.0,102810.0,0.534941]
[1738175558273,0.24435606,102830.0,102810.0,0.729467]
[1738175558940,0.24335606,102830.0,102810.0,0.729467]
[1738175559147,0.24335606,102830.0,102810.0,0.534941]
[1738175559348,0.24535606,102830.0,102810.0,0.729464]
[1738175559550,0.01818816,102820.0,102810.0,0.34042]
[1738175560802,0.01918816,102820.0,102810.0,0.34042]
[1738175561122,0.001,102820.0,102810.0,0.34042]
[1738175565314,0.001,102820.0,102810.0,0.3505]
[1738175567024,0.001,102820.0,102810.0,0.38066729]
[1738175567430,0.001,102820.0,102810.0,0.37058729]
[1738175568394,0.001,102820.0,102810.0,0.34042]
[1738175568738,0.001,102820.0,102810.0,0.44042]
[1738175569318,0.001,102820.0,102810.0,0.47059158]
[1738175572353,0.0011423,102820.0,102810.0,0.48067158]
[1738175576435,0.0011423,102820.0,102810.0,0.63067158]
[1738175576650,0.0011423,102820.0,102810.0,0.71247158]
[1738175576651,0.0001423,102820.0,102810.0,0.71247158]
[1738175576858,0.0001423,102820.0,102810.0,0.80971474]
[1738175580731,0.0001423,102820.0,102810.0,0.81971474]
[1738175580935,0.0002419,102830.0,102820.0,0.395886]
[1738175581139,0.0002419,102830.0,102820.0,0.42605758]
[1738175582205,0.0012419,102830.0,102820.0,0.42605758]
[1738175583163,0.0012419,102830.0,102820.0,0.43613758]
[1738175583869,0.0012419,102830.0,102820.0,0.42605758]
[1738175584108,0.0012419,102830.0,102820.0,0.43613758]
[1738175584525,0.0012419,102830.0,102820.0,0.4364362]
[1738175584732,0.0012419,102830.0,102820.0,0.1763562]
[1738175584941,0.0002419,102830.0,102820.0,0.1763562]
[1738175586023,0.003585,102830.0,102820.0,0.1763562]
[1738175586233,0.004585,102830.0,102820.0,0.1763562]
[1738175589517,0.004585,102830.0,102820.0,0.14618462]
[1738175590729,0.004585,102830.0,102820.0,0.17632937]
[1738175591341,0.004585,102830.0,102820.0,0.15573956]
[1738175592047,0.004585,102830.0,102820.0,0.18588776]
[1738175592258,0.004585,102830.0,102820.0,0.15573956]
[1738175592460,0.004585,102830.0,102820.0,0.18588999]
[1738175593435,0.004585,102830.0,102820.0,0.17633505]
[1738175593643,0.004585,102830.0,102820.0,0.14618462]
[1738175594069,2.004585,102830.0,102820.0,0.14618462]
[1738175595724,2.37679916,102830.0,102820.0,0.00029862]
[1738175595934,2.23092816,102830.0,102820.0,0.14618462]
[1738175596138,2.23092816,102830.0,102820.0,0.00029862]
[1738175596775,2.23092816,102830.0,102820.0,0.14618462]
[1738175596985,2.17831808,102830.0,102820.0,0.14618462]
[1738175597585,2.03367492,102830.0,102820.0,0.14618462]
[1738175598169,2.004585,102830.0,102820.0,0.14618462]
[1738175598393,2.004585,102830.0,102820.0,0.24618462]
[1738175599343,2.004585,102830.0,102820.0,0.14618462]
[1738175600401,2.004585,102830.0,102820.0,0.00029862]
[1738175600787,2.004585,102830.0,102820.0,0.14618462]
[1738175602680,2.10182816,102830.0,102820.0,0.00029862]
[1738175602818,2.17862816,102830.0,102820.0,0.14618462]
[1738175603017,2.17862816,102830.0,102820.0,0.00029862]
[1738175603453,2.29974387,102830.0,102820.0,0.00029862]
[1738175603643,2.32883379,102830.0,102820.0,0.00029862]
[1738175603844,2.18296279,102830.0,102820.0,0.00029862]
[1738175604288,2.32883379,102830.0,102820.0,0.00029862]
[1738175604513,2.18296279,102830.0,102820.0,0.00029862]
[1738175604870,2.32883379,102830.0,102820.0,0.00029862]
[1738175605382,2.57103579,102830.0,102800.0,0.53528299]
[1738175605569,0.09724316,102820.0,102800.0,0.38101654]
[1738175605769,0.09724316,102820.0,102800.0,0.56548054]
[1738175605970,0.09724316,102820.0,102800.0,0.57556054]
[1738175606225,0.09724316,102820.0,102810.0,0.1459]
[1738175608524,0.09724316,102820.0,102800.0,0.53728399]
[1738175608737,0.24313216,102820.0,102800.0,0.47093176]
[1738175608959,0.43764716,102820.0,102810.0,0.001]
[1738175609176,0.24313216,102820.0,102810.0,0.001]
[1738175609397,0.5283897,102820.0,102810.0,0.001]
[1738175609611,0.1459,102810.0,102800.0,0.00029799]
[1738175609823,0.49601078,102810.0,102800.0,0.00129799]
[1738175610442,0.38694316,102810.0,102800.0,0.00129799]
[1738175610859,0.38694316,102810.0,102800.0,0.00029799]
[1738175611275,0.59336754,102810.0,102800.0,0.00029799]
[1738175611889,0.47601078,102810.0,102800.0,0.00029799]
[1738175612317,0.49601078,102810.0,102800.0,0.00029799]
[1738175612518,0.47601078,102810.0,102800.0,0.00029799]
[1738175613175,0.617589,102790.0,102770.0,0.33607648]
[1738175613381,0.24318516,102780.0,102770.0,0.19012148]
[1738175613816,0.09724316,102780.0,102770.0,0.33607748]
[1738175614229,0.422587,102800.0,102780.0,0.340527]
[1738175614445,0.48676147,102800.0,102780.0,0.19459]
[1738175614648,0.43775716,102790.0,102770.0,0.19012148]
[1738175614837,0.63233916,102790.0,102770.0,0.09253943]
[1738175615044,0.71203916,102790.0,102770.0,0.23142061]
[1738175615215,0.71203916,102790.0,102770.0,0.08546461]
[1738175615429,0.145942,102780.0,102770.0,0.08546461]
[1738175615630,0.09724316,102780.0,102770.0,0.23142061]
[1738175615996,0.11537514,102780.0,102770.0,0.23142061]
[1738175616398,0.11537514,102780.0,102770.0,0.23242061]
[1738175617020,0.11537514,102780.0,102770.0,0.23142061]
[1738175617230,0.11537514,102780.0,102770.0,0.08546461]
[1738175617402,0.09724316,102780.0,102770.0,0.08546461]
[1738175617621,0.09724316,102780.0,102770.0,0.23242061]
[1738175618470,0.39955278,102780.0,102770.0,0.08646461]
[1738175619086,0.29048516,102780.0,102770.0,0.08646461]
[1738175619575,0.29048516,102780.0,102770.0,0.08546461]
[1738175620134,0.24618516,102780.0,102770.0,0.08546461]
[1738175620462,0.10024316,102780.0,102770.0,0.08546461]
[1738175620700,0.24618516,102780.0,102770.0,0.08546461]
[1738175621105,0.24618516,102780.0,102770.0,0.08576344]
[1738175621316,0.34205151,102780.0,102770.0,0.08576344]
[1738175621728,0.25605709,102780.0,102770.0,0.08576344]
[1738175623977,0.50662471,102780.0,102770.0,0.00029883]
[1738175625587,0.39755709,102780.0,102770.0,0.00029883]
[1738175625862,0.4265884,102780.0,102770.0,0.00029883]
[1738175626064,0.4265884,102780.0,102740.0,0.82995]
[1738175626065,0.53519,102770.0,102740.0,0.82995]
[1738175626219,0.24321416,102760.0,102740.0,0.535295]
[1738175626430,0.09724316,102760.0,102740.0,0.535295]
[1738175626766,0.09724316,102760.0,102740.0,0.729953]
[1738175626987,0.09724316,102760.0,102740.0,0.829952]
[1738175627191,0.09724316,102760.0,102740.0,0.536296]
[1738175627390,0.09733644,102760.0,102740.0,0.536296]
[1738175627596,0.32602238,102760.0,102740.0,0.341641]
[1738175627807,0.09733644,102760.0,102740.0,0.536298]
[1738175628301,0.43793944,102760.0,102740.0,0.341641]
[1738175628505,0.24331044,102760.0,102740.0,0.536299]
[1738175628715,0.09733644,102760.0,102750.0,0.145985]
[1738175629017,0.09733644,102760.0,102740.0,0.830946]
[1738175629155,0.09733644,102760.0,102740.0,0.636293]
[1738175629362,0.24330844,102760.0,102740.0,0.636293]
[1738175629569,0.24330844,102760.0,102740.0,0.635293]
[1738175629763,0.09833644,102760.0,102750.0,0.145985]
[1738175630372,0.09733644,102760.0,102750.0,0.145985]
[1738175631687,9.328e-05,102760.0,102750.0,0.245985]
[1738175631888,9.328e-05,102760.0,102750.0,0.325085]
[1738175632199,0.00109328,102760.0,102750.0,0.325085]
[1738175633322,9.328e-05,102760.0,102750.0,0.325085]
[1738175633533,9.328e-05,102760.0,102750.0,0.326085]
[1738175634906,9.328e-05,102760.0,102750.0,0.325085]
[1738175635482,9.328e-05,102760.0,102750.0,0.326085]
[1738175635929,0.0001423,102780.0,102770.0,0.321456]
[1738175636131,0.0001423,102780.0,102770.0,0.32193648]
[1738175636354,0.09738546,102780.0,102770.0,0.14643648]
[1738175636776,0.24332746,102780.0,102770.0,0.00048048]
[1738175637009,0.09738546,102780.0,102770.0,0.00048048]
[1738175637148,0.09738546,102780.0,102770.0,0.14643648]
[1738175638770,0.09838546,102780.0,102770.0,0.14643648]
[1738175639258,0.09838546,102780.0,102770.0,0.24643648]
[1738175639390,0.09738546,102780.0,102770.0,0.24643648]
[1738175639631,0.09838546,102780.0,102770.0,0.24643648]
[1738175640087,0.09838546,102780.0,102770.0,0.45641648]
[1738175640088,0.0011423,102780.0,102770.0,0.45641648]
[1738175640336,0.0011423,102780.0,102770.0,0.56506297]
[1738175640555,0.0011423,102780.0,102770.0,0.58806297]
[1738175640761,0.0011423,102780.0,102770.0,0.69530613]
[1738175641599,0.0001423,102780.0,102770.0,0.69530613]
[1738175641811,0.0001423,102780.0,102770.0,0.69526613]
[1738175642025,0.0001423,102780.0,102770.0,2.32027013]
[1738175642262,0.0001423,102780.0,102770.0,2.42027013]
[1738175642509,0.0001423,102780.0,102770.0,2.41927013]
[1738175642765,0.0001423,102780.0,102770.0,2.42127013]
[1738175645178,0.0001423,102780.0,102770.0,0.79726613]
[1738175645406,0.0001423,102780.0,102770.0,2.98871013]
[1738175645636,0.0001423,102780.0,102770.0,2.35661313]
[1738175645802,0.0001423,102780.0,102770.0,2.33713013]
[1738175645960,0.0001423,102780.0,102770.0,1.03897613]
[1738175646170,0.0001423,102780.0,102770.0,1.01492415]
[1738175647353,0.0001423,102780.0,102770.0,0.99252915]
[1738175647712,0.0001423,102780.0,102770.0,0.96918515]
[1738175647914,0.0001423,102780.0,102770.0,1.03677315]
[1738175648116,0.0001423,102780.0,102770.0,0.90373315]
[1738175648349,0.0001423,102780.0,102770.0,0.81864815]
[1738175649385,0.0001423,102780.0,102770.0,0.84164815]
[1738175649582,3e-07,102780.0,102770.0,0.84164815]
[1738175649806,3e-07,102780.0,102770.0,0.69655815]
[1738175650551,3e-07,102780.0,102770.0,0.7160342]
[1738175651453,3e-07,102780.0,102770.0,0.8160342]
[1738175651653,6e-07,102790.0,102780.0,0.428942]
[1738175651855,6e-07,102790.0,102780.0,0.55633165]
[1738175652354,0.0724406,102820.0,102810.0,0.2459]
[1738175652528,0.16968376,102820.0,102810.0,0.2459]
[1738175652936,0.09724316,102820.0,102810.0,0.2459]
[1738175653073,2.02867191,102830.0,102820.0,0.145886]
[1738175653277,2.12591507,102830.0,102820.0,0.145886]
[1738175653498,2.12639579,102830.0,102820.0,0.145886]
[1738175654735,2.12739579,102830.0,102820.0,0.145886]
[1738175655182,2.12639579,102830.0,102820.0,0.145886]
[1738175655649,2.07869579,102830.0,102820.0,0.245886]
[1738175656552,2.07869579,102830.0,102820.0,0.255926]
[1738175658555,2.07869579,102830.0,102820.0,0.155926]
[1738175664588,2.07869579,102830.0,102820.0,0.145886]
[1738175664799,0.222187,102820.0,102800.0,0.340446]
[1738175665123,0.09724316,102810.0,102800.0,0.454583]
[1738175665449,0.24314416,102810.0,102790.0,0.55319]
[1738175665649,0.09724316,102810.0,102800.0,0.145914]
[1738175665865,0.09724316,102810.0,102800.0,0.146914]
[1738175666064,0.09719162,102810.0,102800.0,0.146914]
[1738175666420,0.09719162,102810.0,102800.0,0.145914]
[1738175666627,0.14489162,102810.0,102800.0,0.145914]
[1738175667204,0.145914,102800.0,102790.0,0.10268]
[1738175667412,0.31985716,102800.0,102790.0,0.10268]
[1738175667618,0.31985716,102800.0,102780.0,0.155982]
[1738175667824,0.09724316,102790.0,102780.0,0.01004]
[1738175668023,0.09724316,102790.0,102780.0,0.155982]
[1738175669056,0.09872358,102790.0,102780.0,0.155982]
[1738175669634,0.00148042,102790.0,102780.0,0.255982]
[1738175669847,0.00148042,102790.0,102780.0,0.155982]
[1738175670247,0.09872358,102790.0,102780.0,0.155982]
[1738175671527,0.09772358,102790.0,102780.0,0.155982]
[1738175671969,0.09872358,102790.0,102780.0,0.155982]
[1738175672191,0.09872358,102790.0,102780.0,0.145942]
[1738175672389,0.09772358,102790.0,102780.0,0.145942]